Workbook

Sheet حساب الضريبه
A1: مايتم أدخاله | D1: أدخل وعاء الشهر | H1: حساب الضريبة شهرياً وفقاً للماده 8 بعد التعديل
A2: أدخل وعاء الشهر بعد خصم كافة الاستقطاعات القانونيه المنصوص عليها بالماده 13 من القانون والماده 13 من اللائحه و الاعفاء الشخصى 583.33 جنيه | D2: 119416.67
A3: الوعاء سنوى | B3: المبلغ الخاضع | C3: الضريبة | D3: نسبة الخصم | E3: الخصم | F3: ضريبة الشهر | H3: أدخل صافى المرتب الشهري
A4: شريحه أولى معفاه 8000 | B4: =IF((ROUNDDOWN(D2*12,-1))<=8000,(ROUNDDOWN(D2*12,-1)),8000)/12 -> 666.6666667 | C4: =B4*0% -> 0 | D4: 0 | E4: 0 | F4: =SUM(C4:C8)-SUM(E4:E8) -> 26072.91667 | H4: 16666.67
A5: الشريحه الثانيه من 8001 حتى 30000 جنيه ( 10 % ) | B5: =IF(ROUNDDOWN(D2*12,-1)<=30000,ROUNDDOWN(D2*12,-1)-B4*12,22000)/12 -> 1833.333333 | C5: =IF(B5>0,B5*10%,0) -> 183.3333333 | D5: =IF(B5=0,0%,IF(B6>0,0%,85%)) -> 0 | E5: =C5*MAX(D5:D7) -> 0 | H5: الضريبة الشهرية
A6: الشريحه الثالثه من 30000 حتى 45000 جنيه ( 15 % ) | B6: =IF(ROUNDDOWN(D2*12,-1)<=45000,ROUNDDOWN(D2*12,-1)-B4*12-B5*12,15000)/12 -> 1250 | C6: =IF(B6>0,B6*15%,0) -> 187.5 | D6: =IF(B6=0,0%,IF(B7>0,0%,45%)) -> 0 | E6: =C6*MAX(D6:D8) -> 0 | H6: =(IF((ROUND(H4*12-4.9999999999999,-1))<=8000,0,IF((ROUND(H4*12-4.9999999999999,-1))<=30000,(ROUND(H4*12-4.9999999999999,-1)-8000)*10%*15%,IF((ROUND(H4*12-4.9999999999999,-1))<=45000,(((ROUND(H4*12-4.9999999999999,-1)-8000-22000)*15%)+((30000-8000)*10%))*55%,IF((ROUND(H4*12-4.9999999999999,-1))<=200000,(((ROUND(H4*12-4.9999999999999,-1)-8000-22000-15000)*20%)+((30000-8000)*10%)+((45000-30000)*15%))*92.5%,((ROUND(H4*12-4.9999999999999,-1)-8000-22000-15000-155000)*22.5%)+((30000-8000)*10%)+((45000-30000)*15%)+((200000-45000)*20%))))))/12 -> 2732.604167
A7: الشريحه الرابعه من 45000 حتى 200000 جنيه ( 20 % ) | B7: =IF(ROUNDDOWN(D2*12,-1)<=200000,ROUNDDOWN(D2*12,-1)-B4*12-B5*12-B6*12,155000)/12 -> 12916.66667 | C7: =IF(B7>0,B7*20%,0) -> 2583.333333 | D7: =IF(B7=0,0%,IF(B8>0,0%,7.5%)) -> 0 | E7: 0
A8: الشريحه الخامسه مازاد عن 200000جنيه ( 22.5 % ) | B8: =IF(ROUNDDOWN(D2*12,-1)>200000,ROUNDDOWN(D2*12,-1)-B4*12-B5*12-B6*12-B7*12,0)/12 -> 102750 | C8: =IF(B8>0,B8*22.5%,0) -> 23118.75 | D8: 0 | E8: 0
C9: مجمل ضريبة الشهر | F9: =MAX(F4:F8) -> 26072.91667
B11: =1000-583.33 -> 416.67
